bitfinex-derivatives/quotes_ETHF0:USTF0_20260123
["timestamp","ask_amount","ask_price","bid_price","bid_amount"]
[1769186979064,0.2765275,2979.5,2977.5,0.14893051]
[1769186979368,0.77462907,2979.4,2977.5,1.93351814]
[1769186979568,0.2765275,2979.5,2977.6,1.78458763]
[1769186979872,0.41485653,2979.5,2977.6,1.78458763]
[1769186980363,0.13832903,2979.4,2977.7,1.78458763]
[1769186980570,0.13832903,2979.4,2977.8,0.16811]
[1769186982466,0.77557967,2979.3,2977.8,0.16811]
[1769186982666,0.13832903,2979.1,2977.5,1.78458763]
[1769186983468,0.13832903,2978.9,2977.3,1.78458763]
[1769186983867,0.13832903,2978.9,2977.2,1.78458763]
[1769186984268,0.13832903,2978.9,2976.7,2.95060866]
[1769186984269,0.41485653,2979.5,2977.7,0.14893051]
[1769186984473,0.77596069,2979.4,2977.7,0.14893051]
[1769186984772,0.41485653,2979.5,2977.7,1.93351814]
[1769186984972,0.7758758,2979.4,2977.7,1.93351814]
[1769186985174,0.13832903,2979.4,2977.7,2.10163814]
[1769186985576,0.13832903,2979.2,2977.7,0.16812]
[1769186986069,0.13832903,2979.2,2977.6,1.78458763]
[1769186986373,0.13832903,2979.0,2977.3,1.78458763]
[1769186987368,0.13832903,2979.0,2977.3,1.93351814]
[1769186987563,0.13832903,2979.0,2977.4,1.78458763]
[1769186988174,0.41485653,2979.5,2977.7,0.14893051]
[1769186988370,0.77600605,2979.4,2977.7,0.14893051]
[1769186988570,0.41485653,2979.5,2977.7,1.93351814]
[1769186988773,0.13832903,2979.4,2977.7,1.93351814]
[1769186989574,0.13832903,2979.4,2977.8,0.16811]
[1769186989873,0.13832903,2979.4,2977.7,1.93351814]
[1769186990072,0.13832903,2979.2,2977.6,1.78458763]
[1769186991275,0.13832903,2979.2,2977.5,1.78458763]
[1769186991462,0.13832903,2979.0,2977.4,1.78458763]
[1769186992366,0.13832903,2979.0,2977.5,1.78458763]
[1769186993375,0.00436225,2979.5,2977.8,0.31704051]
[1769186993676,0.00436225,2979.5,2977.7,1.78458763]
[1769186993677,0.00436225,2979.5,2978.2,1.78458763]
[1769186993977,0.00436225,2979.5,2978.3,1.78458763]
[1769186995473,0.00436225,2979.5,2978.2,1.78458763]
[1769186996072,0.00436225,2979.5,2978.0,1.78458763]
[1769186996280,0.16796,2980.5,2978.6,1.93351814]
[1769186996576,0.7764617,2980.4,2978.7,1.93351814]
[1769186996767,0.26680372,2980.4,2978.7,1.93351814]
[1769186996969,0.13832903,2980.6,2978.7,1.93351814]
[1769186997168,0.77637854,2980.5,2978.7,1.93351814]
[1769186997371,0.77637854,2980.4,2978.7,1.93777712]
[1769186997570,0.26945246,2980.5,2978.7,1.93777712]
[1769186997778,0.77614912,2980.4,2978.7,1.93777712]
[1769186997980,0.26945246,2980.5,2978.7,1.93777712]
[1769186998180,0.7761488,2980.4,2978.7,1.93777712]
[1769186998379,0.26945246,2980.5,2978.7,1.93777712]
[1769186998584,0.77600471,2980.4,2978.7,1.93777712]
[1769186998779,0.26945246,2980.5,2978.7,1.93777712]
[1769186998979,0.77600638,2980.4,2978.7,1.93777712]
[1769186999280,0.40778149,2980.5,2978.7,1.93777712]
[1769186999470,0.77595654,2980.4,2978.7,1.93777712]
[1769186999676,0.40778149,2980.5,2978.7,1.93777712]
[1769186999876,0.77595568,2980.4,2978.7,1.93777712]
[1769187000176,0.40778149,2980.5,2978.7,1.93777712]
[1769187000373,0.776191,2980.4,2978.7,1.93777712]
[1769187000575,0.13832903,2980.4,2978.8,1.78458763]
[1769187000875,0.13832903,2980.0,2978.7,0.00425898]
[1769187001979,0.26945246,2980.5,2978.7,0.00425898]
[1769187002284,0.14933079,2980.3,2978.7,0.00425898]
[1769187002576,0.14933079,2980.1,2978.7,0.00425898]
[1769187002778,0.77678706,2980.0,2978.7,0.00425898]
[1769187002977,0.14933079,2980.1,2978.7,0.00425898]
[1769187003183,0.14933079,2979.9,2978.7,0.00425898]
[1769187003385,0.77668881,2979.8,2978.7,0.00425898]
[1769187003584,0.16799,2980.0,2978.7,0.00425898]
[1769187003780,0.77678769,2979.9,2978.7,0.00425898]
[1769187004082,0.92611848,2979.8,2978.7,0.00425898]
[1769187004283,0.77678769,2979.7,2978.7,0.00425898]
[1769187004681,0.14933079,2979.5,2977.9,1.78458763]
[1769187004879,0.14933079,2979.3,2977.6,1.78458763]
[1769187005078,0.92623675,2979.2,2977.5,1.78458763]
[1769187005282,0.14933079,2979.2,2977.6,1.78458763]
[1769187005482,0.14933079,2979.0,2977.4,1.78458763]
[1769187005676,0.14933079,2979.0,2977.4,1.7883167]
[1769187006077,3.361,2979.3,2977.5,1.78458763]
[1769187006288,0.14933079,2979.0,2977.4,1.7883167]
[1769187006585,2.64434562,2978.9,2977.4,0.00372907]
[1769187006786,0.16804,2979.1,2977.5,0.1454771]
[1769187007084,0.16804,2979.1,2977.5,1.93006473]
[1769187007279,3.51033079,2979.3,2977.5,1.93006473]
[1769187007486,0.77730781,2979.2,2977.5,1.93006473]
[1769187007680,3.361,2979.3,2977.9,1.78458763]
[1769187008182,3.361,2979.3,2978.0,1.93006473]
[1769187008886,0.14990671,2979.8,2978.2,0.1454771]
[1769187009085,0.16799,2980.1,2978.2,1.93006473]
[1769187009282,0.77834672,2980.0,2978.3,0.1454771]
[1769187009477,5.229,2980.2,2978.5,0.1454771]
[1769187009682,0.77831453,2980.1,2978.5,0.1454771]
[1769187009885,5.229,2980.2,2978.5,0.1454771]
[1769187010086,0.77827941,2980.1,2978.5,0.1454771]
[1769187010388,5.229,2980.2,2978.5,0.1454771]
[1769187010581,0.77820167,2980.1,2978.5,1.93006473]
[1769187010782,5.229,2980.2,2978.5,1.93006473]
[1769187010981,0.77819767,2980.1,2978.5,1.93006473]
[1769187011181,5.229,2980.2,2978.5,1.93006473]
[1769187011377,0.00347616,2980.5,2979.1,1.78458763]
[1769187011682,1.868,2981.4,2979.6,0.1454771]
[1769187011881,0.77780073,2981.3,2979.7,0.1454771]
[1769187012187,3.361,2981.5,2980.1,1.93006473]
[1769187012492,0.14990671,2981.4,2979.6,1.93006473]
[1769187012682,0.15368644,2981.4,2979.7,1.78458763]
[1769187013378,0.00377973,2981.4,2979.9,0.1454771]
[1769187013779,0.00377973,2981.4,2979.6,0.17064662]
[1769187013780,0.15368644,2981.4,2979.6,0.17064662]
[1769187014291,0.14990671,2981.2,2979.6,0.00263662]
[1769187014788,0.16796,2980.5,2978.7,1.78458763]
[1769187014985,0.14990671,2980.4,2978.4,1.78458763]
[1769187015683,0.14990671,2980.4,2978.4,1.93006473]
[1769187015883,0.14990671,2980.4,2978.4,1.93391042]
[1769187016083,0.14990671,2980.3,2978.4,1.93391042]
[1769187016289,0.14990671,2980.2,2978.4,0.00384569]
[1769187017489,0.14990671,2980.2,2978.4,1.93391042]
[1769187017790,0.14990671,2980.2,2978.5,0.1454771]
[1769187018591,0.14990671,2980.2,2978.4,0.00384569]
[1769187020090,0.14990671,2980.0,2978.4,0.00384569]
[1769187020291,0.14990671,2979.8,2978.4,0.00384569]
[1769187021285,0.14990671,2979.6,2978.4,0.00384569]
[1769187022092,0.14990671,2979.5,2978.4,0.00384569]
[1769187022283,0.77673033,2979.4,2978.4,0.00384569]
[1769187022589,0.77673033,2979.3,2978.4,0.00384569]
[1769187022792,0.00238617,2979.3,2978.4,0.00384569]
[1769187028502,5.228,2979.9,2978.4,0.00384569]
[1769187028801,0.77708418,2979.8,2978.4,0.00384569]
[1769187028996,5.228,2980.2,2978.4,0.14932279]
[1769187029200,0.77699891,2980.1,2978.4,0.14932279]
[1769187029396,5.228,2980.2,2978.4,0.14932279]
[1769187029397,0.77699891,2980.0,2978.4,0.14932279]
[1769187029592,0.00402335,2980.0,2978.4,0.14932279]
[1769187029795,0.00402335,2980.0,2978.4,0.31740279]
[1769187029996,0.15393006,2980.0,2978.4,0.00384569]
[1769187030793,0.14990671,2979.6,2978.4,0.00384569]
[1769187030996,0.31791671,2979.6,2978.4,0.00384569]
[1769187031197,0.77724081,2979.5,2978.4,0.00384569]
[1769187031396,0.77724081,2979.4,2978.4,0.00384569]
[1769187031706,0.31791671,2979.6,2978.4,0.00384569]
[1769187032004,0.77722369,2979.5,2978.4,0.00384569]
[1769187032201,0.77722369,2979.4,2978.4,0.00384569]
[1769187032499,0.14638312,2979.5,2978.4,0.00384569]
[1769187033800,0.16804,2979.2,2977.4,1.78458763]
[1769187033998,0.14638312,2979.1,2977.3,1.78458763]
[1769187034395,0.14638312,2979.1,2977.4,1.78458763]
[1769187034702,0.14638312,2979.1,2977.4,1.78701621]
[1769187035402,0.14638312,2979.1,2977.4,0.00242858]
[1769187037901,3.50738312,2979.0,2977.4,0.00242858]
[1769187038104,0.14638312,2978.8,2977.4,0.00242858]
[1769187040104,0.14638312,2979.4,2977.4,0.14227838]
[1769187040306,0.14638312,2979.2,2977.4,0.00242858]
[1769187040809,0.31442312,2979.2,2977.4,0.14227838]
[1769187041002,0.14638312,2979.2,2977.5,0.1398498]
[1769187041209,3.362,2979.5,2977.5,0.1398498]
[1769187041400,3.362,2979.5,2977.5,1.92443743]
[1769187042310,0.14638312,2979.4,2977.7,1.78458763]
[1769187042509,0.14638312,2979.4,2977.6,1.78458763]
[1769187042911,0.14638312,2979.1,2977.5,1.78458763]
[1769187043209,0.14638312,2979.1,2977.4,0.00242858]
[1769187043405,0.14638312,2979.1,2977.4,1.78701621]
[1769187043810,0.14638312,2978.8,2977.4,0.00242858]
[1769187048003,0.14638312,2979.3,2977.4,1.92686601]
[1769187048202,0.14638312,2979.3,2977.6,1.92443743]
[1769187048398,0.14638312,2979.3,2977.7,1.78458763]
[1769187048811,0.14638312,2979.3,2977.8,1.78458763]
[1769187049206,0.14638312,2979.3,2977.9,1.78458763]
[1769187049815,0.14638312,2979.3,2977.8,1.78458763]
[1769187050014,0.14638312,2979.3,2977.9,1.78458763]
[1769187050716,0.14638312,2979.3,2977.8,1.78458763]
[1769187050914,0.14638312,2979.1,2977.6,1.78458763]
[1769187051116,0.16802,2979.5,2977.6,1.92443743]
[1769187051310,0.7800209,2979.4,2977.7,1.92443743]
[1769187051616,0.7800209,2979.3,2977.8,1.78458763]
[1769187051815,0.31440312,2979.5,2977.8,1.78458763]
[1769187052021,0.78000087,2979.4,2977.8,1.78458763]
[1769187052209,0.78000087,2979.3,2977.7,1.92443743]
[1769187052411,0.78000087,2979.2,2977.7,0.1398498]
[1769187052616,0.14638312,2979.4,2977.7,0.1398498]
[1769187052809,0.78000067,2979.3,2977.7,0.1398498]
[1769187053006,0.78000067,2979.2,2977.7,0.1398498]
[1769187053205,0.14638312,2979.4,2977.7,0.1398498]
[1769187053411,0.7800082,2979.3,2977.7,0.1398498]
[1769187053617,0.7800082,2979.2,2977.7,0.1398498]
[1769187053815,0.14638312,2979.4,2977.7,0.1398498]
[1769187054014,0.78001073,2979.3,2977.7,0.1398498]
[1769187054209,0.14638312,2979.9,2978.0,0.1398498]
[1769187054416,0.78005539,2979.8,2978.1,0.1398498]
[1769187054608,0.14638312,2979.9,2978.2,1.78458763]
[1769187054818,0.7799449,2979.8,2978.2,1.78458763]
[1769187055011,0.14638312,2979.9,2978.2,1.78458763]
[1769187055217,0.77992556,2979.8,2978.3,0.1398498]
[1769187055412,0.14638312,2979.9,2978.3,0.1398498]
[1769187055612,0.77983898,2979.8,2978.3,0.1398498]
[1769187055812,0.14638312,2979.5,2978.0,1.78458763]
[1769187056017,0.14638312,2979.5,2977.9,1.78458763]
[1769187056217,0.92638331,2979.4,2977.7,1.92443743]
[1769187056418,0.78000019,2979.3,2977.7,1.92443743]
[1769187057021,0.14638312,2979.2,2977.7,1.78458763]
[1769187057318,0.14638312,2979.2,2977.4,1.78701621]
[1769187057319,0.14638312,2979.0,2977.4,1.78701621]
[1769187057515,0.14638312,2979.5,2977.5,0.1398498]
[1769187057720,0.78048889,2979.4,2977.7,1.78458763]
[1769187057914,0.14638312,2979.5,2977.7,1.78458763]
[1769187057915,0.78048889,2979.3,2977.7,1.78458763]
[1769187058216,0.16801,2979.8,2977.9,0.1398498]
[1769187058422,0.78049902,2979.7,2978.0,1.92443743]
[1769187058614,0.78049902,2979.6,2978.0,1.92443743]
[1769187058812,0.16801,2979.8,2978.0,1.92443743]
[1769187059015,0.78044288,2979.7,2978.0,1.92443743]
[1769187059215,0.78044288,2979.6,2978.0,1.92443743]
[1769187059418,0.31439312,2979.8,2978.1,1.78458763]
[1769187059713,0.78067202,2979.7,2978.1,1.78458763]
[1769187059912,0.78067202,2979.6,2978.1,1.78458763]
[1769187060114,0.14638312,2979.8,2978.1,1.92443743]
[1769187060316,0.14638312,2979.8,2978.2,1.78458763]
[1769187060317,0.78063432,2979.7,2978.2,1.78458763]
[1769187060622,0.78063432,2979.6,2978.1,1.92443743]
[1769187060916,0.14638312,2979.8,2978.1,1.92443743]
[1769187061118,0.78095176,2979.7,2978.2,1.78458763]
[1769187061313,0.78095176,2979.6,2978.1,1.92443743]
[1769187061621,0.14638312,2979.8,2978.1,1.92443743]
[1769187061815,0.78086865,2979.7,2978.1,1.92443743]
[1769187062013,0.78086865,2979.6,2978.1,1.92443743]
[1769187062217,0.14638312,2979.8,2978.2,1.93440033]
[1769187062518,0.14638312,2979.8,2978.3,1.78458763]
[1769187062725,0.14638312,2979.8,2978.4,1.78458763]
[1769187063225,0.14638312,2979.8,2978.3,1.78458763]
[1769187063922,0.14224052,2979.4,2978.1,1.78458763]
[1769187064122,0.14224052,2979.4,2977.9,1.78458763]
[1769187064818,0.14224052,2979.4,2978.0,1.78458763]
[1769187065015,0.17201335,2980.0,2978.2,0.1498127]
[1769187065221,0.00402335,2980.0,2978.4,1.78458763]
[1769187065421,0.00402335,2980.0,2978.5,1.93440033]
[1769187065724,0.00402335,2980.0,2978.6,1.93440033]
[1769187066222,0.00402335,2980.0,2978.8,1.78458763]
[1769187066428,0.00402335,2980.0,2979.1,1.93111564]
[1769187066619,1.9760177,2980.2,2979.2,1.93111564]
[1769187067220,1.9760177,2980.2,2979.3,0.14652801]
[1769187067421,1.9760177,2980.2,2979.2,1.78458763]
[1769187067716,1.9802192,2980.2,2978.8,0.14652801]
[1769187068025,1.9802192,2980.2,2978.9,0.14652801]
[1769187068228,1.8282694,2980.2,2979.0,0.14652801]
[1769187068427,1.72858206,2980.2,2979.3,0.16803]
[1769187068625,1.72858206,2980.2,2979.4,1.78458763]
[1769187068827,0.0042015,2980.2,2979.3,1.95261763]
[1769187069223,0.0042015,2980.2,2979.1,1.78458763]
[1769187069425,0.0042015,2980.2,2979.0,1.78458763]
[1769187069725,3.361,2981.4,2978.6,1.30147821]
[1769187069924,3.51294835,2981.4,2979.7,1.77667463]
[1769187070229,3.51294835,2981.4,2979.1,2.95060866]
[1769187070230,0.15194835,2981.3,2979.4,1.77667463]
[1769187070929,0.15610883,2981.3,2979.4,1.77965465]
[1769187071331,0.15610883,2981.3,2979.4,0.00298002]
[1769187071629,0.15610883,2981.3,2979.4,1.77965465]
[1769187071830,0.15610883,2981.3,2979.6,0.16801]
[1769187072031,0.00416048,2981.3,2980.1,0.16798]
[1769187075532,0.00416048,2981.3,2979.8,1.77667463]
[1769187075720,0.15817514,2981.3,2979.7,1.77667463]
[1769187076132,0.15817514,2981.3,2979.5,1.77667463]
[1769187076326,0.15817514,2981.3,2979.4,1.77965465]
[1769187077028,0.00416048,2981.3,2979.8,0.168]
[1769187077732,0.00416048,2981.3,2979.9,0.16799]
[1769187077931,0.00416048,2981.3,2979.8,1.77667463]
[1769187078130,1.30147821,2982.5,2979.5,4.23589951]
[1769187078131,0.15379599,2983.3,2980.0,1.77667463]
[1769187078327,0.15379599,2983.2,2981.1,0.16793]
[1769187078523,0.15379599,2983.1,2981.1,0.16793]
[1769187079129,0.15729278,2983.1,2981.1,0.16793]
[1769187079535,0.15379602,2983.0,2981.1,0.16793]
[1769187079829,0.15379602,2983.0,2980.5,3.64367463]
[1769187080132,0.15379602,2982.8,2980.6,0.16795]
[1769187080935,0.15379818,2982.0,2979.7,1.77667463]
[1769187081134,0.15379818,2981.8,2979.6,3.36]
[1769187081330,0.15379821,2981.7,2979.6,3.52801]
[1769187081637,0.15379821,2981.3,2979.4,0.00298002]
[1769187082323,0.15211717,2981.2,2979.4,0.00298002]
[1769187082525,0.32003717,2981.2,2979.4,0.00298002]
[1769187082832,0.15211717,2980.9,2979.4,0.00298002]
[1769187083033,0.15470168,2980.9,2979.4,0.00298002]
[1769187083234,0.15211721,2980.8,2979.4,0.00298002]
[1769187085439,3.51111721,2980.8,2979.4,0.00298002]
[1769187085929,0.15117809,2980.7,2979.4,0.00298002]
[1769187086131,0.15107983,2980.5,2978.1,1.77667463]
[1769187086333,0.15107983,2980.4,2977.9,1.94478463]
[1769187086533,0.15107983,2980.2,2977.9,0.16811]
[1769187087037,0.15107983,2979.8,2977.2,1.94652759]
[1769187087330,0.15107987,2979.6,2977.2,1.94953764]
[1769187087535,0.15107987,2979.1,2977.2,0.00301005]
[1769187087738,0.15107987,2979.0,2977.2,0.00301005]
[1769187088337,0.15099126,2978.8,2977.2,0.00301005]
[1769187088525,0.15428621,2978.8,2977.2,0.00301005]
[1769187089126,0.1509913,2978.7,2977.2,0.00301005]
[1769187089733,3.36,2978.6,2977.2,0.00301005]
[1769187089932,0.1509913,2978.7,2977.2,0.00301005]
[1769187090533,0.15089845,2978.2,2976.0,1.70743887]
[1769187090734,0.15089845,2978.2,2976.2,0.00207102]
[1769187091634,0.15089845,2978.2,2976.2,0.00590275]
[1769187091942,3.36,2978.3,2976.3,0.00232115]
[1769187092336,0.15079293,2978.2,2976.3,0.00232115]
[1769187092742,0.15079293,2978.2,2976.2,0.00383173]
[1769187092743,0.15079293,2978.7,2976.6,0.16818]
[1769187093943,0.15079293,2978.7,2976.8,0.17048879]
[1769187094243,0.00329495,2978.8,2976.8,0.00231879]
[1769187094441,0.00329495,2978.8,2977.1,0.0015452]
[1769187095342,0.00175088,2978.8,2977.4,0.00154406]
[1769187095944,0.00175088,2978.8,2977.6,0.16812]
[1769187100840,0.00175088,2978.8,2976.9,0.16816]
[1769187101035,0.00175088,2978.8,2976.5,6.43915284]
[1769187101241,0.00175088,2978.8,2977.2,0.16815]
[1769187101442,0.00175088,2978.8,2976.5,6.43915284]
[1769187101747,0.00175088,2978.8,2977.5,0.16813]
[1769187102543,0.00175088,2978.8,2977.6,0.16812]
[1769187105450,0.00175088,2978.8,2976.8,2.36889951]
[1769187105451,0.00175088,2978.8,2977.1,1.77667463]
[1769187105650,0.15328867,2980.0,2978.4,0.16808]
[1769187106246,0.15510505,2979.9,2978.4,0.16808]
[1769187106649,0.15881374,2979.9,2978.4,0.00303009]
[1769187106848,0.15510505,2979.4,2977.3,1.77667463]
[1769187107053,0.15510505,2979.4,2977.2,0.16815]
[1769187107350,0.15510507,2979.3,2977.4,0.16813]
[1769187107556,0.15510507,2979.8,2977.3,1.77667463]
[1769187107757,0.15510507,2979.8,2978.1,0.1681]
[1769187107956,0.15510507,2979.8,2978.1,0.1710368]
[1769187108556,0.15510507,2979.8,2978.2,0.16809]
[1769187108854,0.17170869,2979.9,2978.1,0.0029368]
[1769187108855,0.1579716,2979.4,2978.1,0.0029368]
[1769187109451,0.15797161,2979.3,2978.1,0.0029368]
[1769187109851,0.15797161,2979.1,2977.2,0.16814]
[1769187110059,0.15797161,2979.0,2976.8,1.77667463]
[1769187110260,0.15797682,2978.8,2977.0,1.77667463]
[1769187111052,0.15797682,2978.8,2977.0,1.77998182]
[1769187111355,0.15797682,2978.8,2977.1,1.77667463]
[1769187112053,0.15797682,2978.8,2977.4,1.77667463]
[1769187112260,0.15797682,2978.8,2977.2,1.77667463]
[1769187112660,0.15797682,2978.8,2977.1,1.77667463]
[1769187113361,0.15797682,2978.8,2977.2,1.77667463]
[1769187113864,0.15797682,2978.8,2977.1,1.77667463]
[1769187114463,0.15797682,2978.8,2977.0,1.77998182]
[1769187115667,0.15844095,2978.6,2977.0,0.00330719]
[1769187115865,0.15844095,2978.4,2977.0,0.00330719]
[1769187116568,0.15802134,2978.1,2977.0,0.00330719]
[1769187116867,0.15802134,2977.9,2976.4,1.77667463]
[1769187117071,0.15802134,2977.7,2976.0,1.77667463]
[1769187117363,0.15802135,2977.5,2975.7,1.77667463]
[1769187117563,0.15802135,2977.1,2975.4,1.77667463]
[1769187117771,0.16059177,2977.1,2975.4,0.00286844]
[1769187117967,3.52259177,2977.1,2975.5,1.77667463]
[1769187118169,0.15802135,2977.0,2975.4,1.77954307]
[1769187118467,0.15802135,2977.0,2975.4,0.00286844]
[1769187119471,0.15801189,2976.6,2974.4,1.77667463]
[1769187120161,0.15742454,2976.3,2974.1,1.77667463]
[1769187120361,0.15742454,2976.1,2974.1,0.0040936]
[1769187120561,0.15742454,2976.1,2974.3,0.16831]
[1769187120864,3.362,2976.4,2974.9,1.77667463]
[1769187121069,3.362,2976.4,2975.0,1.94494463]
[1769187121466,3.362,2976.4,2975.0,0.16827]
[1769187121867,0.15742455,2976.3,2975.0,0.16827]
[1769187122377,0.15792919,2976.8,2975.0,0.16827]
[1769187124273,0.15792919,2976.8,2975.0,1.77667463]
[1769187124768,0.15792919,2976.8,2974.9,1.77667463]
[1769187124969,0.15792919,2976.8,2974.6,1.77667463]
[1769187125174,0.15792919,2976.8,2974.5,1.94497463]
[1769187125575,0.15792919,2976.8,2974.5,1.77667463]
[1769187125775,0.15792919,2976.8,2974.3,2.36889951]
[1769187125776,0.15792919,2976.8,2974.6,1.77667463]
[1769187126070,0.15792919,2976.8,2974.9,0.16828]
[1769187126368,0.15792919,2976.8,2975.1,0.16827]
[1769187127877,0.15792919,2976.8,2974.4,1.94497463]
[1769187128177,0.15792919,2976.8,2974.7,0.16829]
[1769187128372,0.15808846,2976.7,2974.5,1.77667463]
[1769187128569,0.15808846,2976.7,2974.4,1.77667463]
[1769187128876,0.15808846,2976.7,2974.9,0.16828]
[1769187129069,0.15808846,2976.7,2974.5,1.77667463]
[1769187129070,0.15808846,2976.7,2974.7,1.77667463]
[1769187129266,0.15808846,2976.7,2975.2,0.16826]
[1769187130181,0.15808846,2976.7,2974.6,0.16829]
[1769187131073,0.15808846,2976.7,2973.8,3.364]
[1769187131074,0.15942756,2976.6,2974.8,0.16828]
[1769187131476,0.15942756,2976.6,2974.9,0.16828]
[1769187131672,0.15942757,2976.5,2974.9,0.16828]
[1769187132475,0.15942757,2976.5,2975.0,0.16827]
[1769187132676,0.15942757,2976.5,2975.1,0.16827]
[1769187132877,0.15942757,2976.5,2975.2,0.16826]
[1769187134888,0.00257042,2977.1,2975.8,0.16822]
[1769187135079,0.16497089,2977.1,2975.9,0.16822]
[1769187138080,0.16497089,2977.1,2976.0,0.16821]
[1769187140289,0.16497089,2977.1,2975.4,1.94492463]
[1769187140489,0.16497089,2977.1,2975.4,0.16825]
[1769187140689,0.16234953,2976.9,2975.0,1.77667463]
[1769187140888,0.16234953,2976.9,2975.1,1.77667463]
[1769187141091,0.16234953,2976.9,2974.9,1.94495463]
[1769187141592,0.16234953,2976.9,2975.0,1.77667463]
[1769187141791,0.16234953,2976.9,2974.9,0.16828]
[1769187141792,0.16234953,2976.9,2974.9,1.94495463]
[1769187141993,0.16234953,2976.9,2975.0,1.77667463]
[1769187142494,0.16234953,2976.9,2975.0,0.16827]
[1769187142687,0.16234953,2976.9,2975.1,0.16827]
[1769187143193,0.00257042,2977.1,2975.9,0.16822]
[1769187143790,0.00257042,2977.1,2976.0,0.16822]
[1769187144496,0.00257042,2977.1,2976.1,0.16821]
[1769187144886,0.00257042,2977.1,2976.2,0.1682]
[1769187145090,0.16198684,2977.9,2976.8,0.16817]
[1769187145292,0.16198684,2978.7,2976.9,0.16816]
[1769187145491,0.16198684,2978.7,2976.9,1.94483463]
[1769187145997,0.16531958,2978.7,2976.9,1.94483463]
[1769187146296,0.16531958,2978.7,2976.9,0.16816]
[1769187146492,0.16531958,2978.7,2976.6,1.77667463]
[1769187146493,0.1610403,2978.5,2976.6,1.77667463]
[1769187146789,0.1610403,2978.3,2976.5,1.77667463]
[1769187146991,0.1610403,2978.3,2976.3,1.94486463]
[1769187147192,0.1610403,2978.1,2976.3,0.16819]
[1769187147391,0.1610403,2977.9,2976.2,0.00300509]
[1769187147590,0.1610403,2977.7,2976.2,0.00300509]
[1769187147798,0.1610403,2977.5,2976.2,0.00300509]
[1769187150902,0.1610403,2977.5,2976.3,0.1682]
[1769187152198,0.1610403,2977.5,2976.2,0.00300509]
[1769187153305,0.16143738,2977.3,2976.2,0.00300509]
[1769187153499,0.16143738,2977.3,2975.7,0.16823]
[1769187153705,0.16143738,2977.3,2975.4,1.77667463]
[1769187154004,0.16143738,2977.1,2975.0,1.94494463]
[1769187154205,0.16143738,2976.9,2975.1,0.16827]
[1769187154404,0.16138957,2976.8,2975.1,0.17067225]
[1769187154900,0.16138957,2976.8,2975.2,0.16826]
[1769187155100,0.16138957,2976.8,2975.3,0.16826]
[1769187156803,0.16138957,2976.8,2975.1,1.77907688]
[1769187157005,0.16147103,2976.6,2975.1,0.00240225]
[1769187157206,0.16147103,2976.5,2975.1,0.00240225]
[1769187158007,0.16147103,2976.3,2975.1,0.00240225]
[1769187158906,3.52562844,2976.2,2975.1,0.00240225]
[1769187159108,0.16042731,2976.0,2974.2,1.77667463]
[1769187159312,0.16042731,2975.8,2974.0,0.16832]
[1769187159811,0.16042731,2976.5,2974.7,0.16828]
[1769187160008,0.16042731,2976.5,2974.8,0.16828]
[1769187160408,0.16042731,2976.5,2974.9,0.16828]
[1769187160814,0.16042731,2976.5,2975.0,0.16827]
[1769187161116,0.16042731,2976.5,2975.6,0.16824]
[1769187161316,0.00253751,2976.6,2975.7,0.16823]
[1769187161912,0.00253751,2976.6,2975.5,1.77667463]
[1769187162113,0.16029125,2977.5,2975.6,1.77667463]
[1769187162409,0.16029125,2977.5,2975.7,1.77667463]
[1769187162816,0.16029125,2977.5,2975.9,0.16822]
[1769187163020,0.1632404,2977.5,2975.9,0.16822]
[1769187164723,0.15871694,2977.3,2975.9,0.16822]
[1769187165124,0.15871694,2977.3,2975.9,1.94489463]
[1769187165426,0.15871694,2977.3,2975.9,0.16822]
[1769187165618,0.15871694,2977.3,2975.9,1.94489463]
[1769187167730,0.15871694,2977.3,2975.5,1.77667463]
[1769187170331,0.15871694,2977.3,2975.9,1.77667463]
[1769187170628,0.15871694,2977.3,2975.8,1.77667463]
[1769187170834,0.15969716,2977.1,2975.4,1.94491463]
[1769187172331,0.15969716,2977.1,2975.4,0.16824]
[1769187172637,0.15969716,2977.1,2975.1,1.77667463]
[1769187173033,0.15927476,2976.9,2974.9,1.77667463]
[1769187173331,0.15927476,2976.7,2974.8,1.94495463]
[1769187173528,0.15927476,2976.5,2974.8,1.94495463]
[1769187173731,0.15927476,2976.5,2974.9,0.16828]
[1769187173926,0.15927476,2976.5,2974.9,1.94495463]
[1769187174127,0.15927476,2976.5,2974.9,1.77667463]
[1769187174331,0.15927476,2976.5,2975.0,1.77667463]
[1769187175032,0.15927476,2976.5,2975.2,0.16826]
[1769187175626,0.15927476,2976.5,2974.8,1.77667463]
[1769187175940,0.15927476,2976.5,2974.9,1.77667463]
[1769187176434,0.15927476,2976.5,2974.9,1.94495463]
[1769187176827,0.15927476,2976.5,2975.0,1.94494463]
[1769187177034,0.15927476,2976.5,2975.2,1.94493463]
[1769187177333,0.15927476,2976.5,2975.3,1.94492463]
[1769187177632,0.16065891,2977.0,2975.5,1.77667463]
[1769187178035,0.16065891,2977.0,2975.4,1.77667463]
[1769187178732,0.16380903,2977.5,2975.8,0.16823]
[1769187178937,0.16380903,2977.5,2975.9,1.77667463]
[1769187179337,1.869,2977.4,2975.8,1.94490463]
[1769187179636,0.16085988,2977.3,2975.8,1.94490463]
[1769187180339,0.16085988,2977.3,2975.6,1.77667463]
[1769187180531,0.16110314,2977.1,2975.5,1.77667463]
[1769187180730,0.16110314,2977.1,2975.6,1.94491463]
[1769187180929,0.16110314,2977.1,2975.7,1.77667463]
[1769187181325,0.16110314,2977.1,2975.8,0.16823]
[1769187182829,0.16110314,2977.1,2975.8,1.94490463]
[1769187183737,0.16110314,2977.1,2975.8,1.77667463]
[1769187184038,0.16110314,2977.1,2976.1,0.16821]
[1769187184630,0.16110314,2977.1,2975.8,1.77667463]
[1769187184839,0.16110314,2977.1,2975.7,1.77667463]
[1769187185033,0.16068544,2976.8,2975.1,1.77667463]
[1769187185236,0.16068544,2976.5,2974.6,1.77667463]
[1769187185435,0.16068544,2976.3,2974.5,1.77667463]
[1769187185640,1.46344321,2976.1,2974.5,1.77667463]
[1769187185840,0.95526906,2976.0,2974.2,1.77667463]
[1769187186036,0.16068544,2975.9,2974.2,1.77667463]
[1769187186342,0.16068544,2975.9,2974.1,1.77667463]
[1769187186644,0.16135888,2975.7,2974.0,3.28782902]
[1769187186940,0.16135888,2975.5,2974.0,3.28782902]
[1769187187239,0.16135888,2975.5,2974.0,1.51115439]
[1769187187240,0.16135888,2975.4,2974.0,1.51115439]
[1769187187737,0.16557878,2975.4,2974.0,1.51355625]
[1769187188134,5.39435888,2975.3,2974.0,1.51355625]
[1769187188340,0.16135888,2975.3,2974.0,1.51355625]
[1769187188542,0.0042199,2975.4,2974.2,1.77667463]
[1769187189635,0.0042199,2975.4,2974.3,0.16831]
[1769187189835,0.0042199,2975.4,2974.4,0.1683]
[1769187190042,0.0042199,2975.4,2974.4,1.94497463]
[1769187190236,0.16021352,2976.3,2974.6,0.16829]
[1769187190437,0.16021352,2976.3,2974.6,1.94496463]